fUSD/lending_fUSD_20260701
["ID","MTS","AMOUNT","RATE_DAILY","PERIOD"]
[426797125,1782837040000,-151.0,0.00021035,2]
[426797111,1782837040000,-176.73593335,0.00021,2]
[426797122,1782837040000,-151.0,0.00021035,2]
[426797118,1782837040000,-572.2002,0.00021001,7]
[426797119,1782837040000,-151.0,0.00021035,2]
[426797121,1782837040000,-151.0,0.00021035,2]
[426797120,1782837040000,-151.0,0.00021035,2]
[426797115,1782837040000,-696.0,0.00021,2]
[426797116,1782837040000,-282.70312053,0.00021001,7]
[426797112,1782837040000,-182.0,0.00021,2]
[426797113,1782837040000,-202.0,0.00021,2]
[426797117,1782837040000,-422.90696095,0.00021001,7]
[426797188,1782837041000,-167.72044849,0.00023558,2]
[426797198,1782837041000,-152.0,0.0002394,3]
[426797195,1782837041000,-171.55910658,0.00023562,2]
[426797194,1782837041000,-164.85883288,0.00023558,2]
[426797192,1782837041000,-169.60476426,0.00023558,2]
[426797197,1782837041000,-500.0,0.00023878,2]
[426797193,1782837041000,-170.22124283,0.00023558,2]
[426797196,1782837041000,-2337.0,0.00023591,3]
[426797190,1782837041000,-239.22588224,0.00023558,2]
[426797191,1782837041000,-198.3865749,0.00023558,2]
[426797201,1782837041000,-202.0,0.00024,2]
[426797189,1782837041000,-156.68418846,0.00023558,2]
[426797208,1782837041000,-1231.0,0.0002409,2]
[426797219,1782837041000,-1786.63,0.00024521,2]
[426797206,1782837041000,-1278.0,0.0002409,2]
[426797202,1782837041000,-208.0,0.00024,2]
[426797209,1782837041000,-6088.0,0.0002409,2]
[426797204,1782837041000,-160.0,0.0002403,3]
[426797205,1782837041000,-283.0,0.0002409,2]
[426797200,1782837041000,-182.0,0.00024,2]
[426797203,1782837041000,-696.0,0.00024,2]
[426797199,1782837041000,-180.34827971,0.0002399,2]
[426797212,1782837041000,-2337.0,0.000242,3]
[426797210,1782837041000,-317.62,0.0002411,2]
[426797220,1782837041000,-183.68868893,0.00024581,2]
[426797213,1782837041000,-174.93386317,0.00024227,2]
[426797186,1782837041000,-252.29390947,0.00023558,2]
[426797207,1782837041000,-1362.0,0.0002409,2]
[426797187,1782837041000,-268.75535654,0.00023558,2]
[426797160,1782837041000,-182.0,0.00023,2]
[426797185,1782837041000,-292.94553362,0.00023558,2]
[426797158,1782837041000,-1053.67,0.00022466,2]
[426797211,1782837041000,-568.63666701,0.00024194,2]
[426797159,1782837041000,-1129.0,0.00022964,2]
[426797161,1782837041000,-202.0,0.00023,2]
[426797156,1782837041000,-162.48,0.00022398,2]
[426797170,1782837041000,-203.51876525,0.00023525,2]
[426797172,1782837041000,-171.86313021,0.00023532,2]
[426797165,1782837041000,-219.62168865,0.00023525,2]
[426797162,1782837041000,-208.0,0.00023,2]
[426797164,1782837041000,-166.07241082,0.00023525,2]
[426797166,1782837041000,-162.38629236,0.00023525,2]
[426797171,1782837041000,-161.11009456,0.00023525,2]
[426797169,1782837041000,-181.17808073,0.00023525,2]
[426797163,1782837041000,-696.0,0.00023,2]
[426797168,1782837041000,-169.83318008,0.00023525,2]
[426797167,1782837041000,-222.49197864,0.00023525,2]
[426797173,1782837041000,-154.72924664,0.00023532,2]
[426797178,1782837041000,-165.67401012,0.0002354,2]
[426797175,1782837041000,-173.66633328,0.00023532,2]
[426797176,1782837041000,-150.72649291,0.00023532,2]
[426797179,1782837041000,-200.74492103,0.00023558,2]
[426797183,1782837041000,-156.89788617,0.00023558,2]
[426797182,1782837041000,-168.3593723,0.00023558,2]
[426797174,1782837041000,-196.36416507,0.00023532,2]
[426797184,1782837041000,-163.39922731,0.00023558,2]
[426797180,1782837041000,-203.40597094,0.00023558,2]
[426797177,1782837041000,-206.32,0.0002354,2]
[426797181,1782837041000,-165.11797764,0.00023558,2]
[426797221,1782837041000,-500.0,0.00024594,2]
[426797157,1782837041000,-363.0,0.00022466,2]
[426797215,1782837041000,-171.63594645,0.00024227,2]
[426797247,1782837041000,-336.7187446,0.00024813,2]
[426797259,1782837041000,-244.4757832,0.00024813,2]
[426797251,1782837041000,-585.89106725,0.00024813,2]
[426797258,1782837041000,-339.20952853,0.00024813,2]
[426797252,1782837041000,-504.58781895,0.00024813,2]
[426797256,1782837041000,-198.24972647,0.00024813,2]
[426797255,1782837041000,-478.45176447,0.00024813,2]
[426797257,1782837041000,-396.7731498,0.00024813,2]
[426797253,1782837041000,-537.51071308,0.00024813,2]
[426797262,1782837041000,-223.03990936,0.00024813,2]
[426797260,1782837041000,-340.44248566,0.00024813,2]
[426797263,1782837041000,-225.35130831,0.00024816,2]
[426797265,1782837041000,-218.36435051,0.00024816,2]
[426797269,1782837041000,-3675.97842959,0.00025,2]
[426797261,1782837041000,-329.71766577,0.00024813,2]
[426797264,1782837041000,-343.11821316,0.00024816,2]
[426797270,1782837041000,-190.7691721,0.00025,2]
[426797266,1782837041000,-2337.0,0.00024871,3]
[426797267,1782837041000,-155.04098898,0.00024967,2]
[426797268,1782837041000,-13342.47754838,0.00025,3]
[426797271,1782837041000,-217.0,0.00025,2]
[426797272,1782837041000,-209.0,0.00025,2]
[426797274,1782837041000,-709.41652807,0.00025,2]
[426797273,1782837041000,-160.0,0.00025,3]
[426797277,1782837041000,-160.0,0.00025151,3]
[426797214,1782837041000,-500.0,0.00024227,2]
[426797275,1782837041000,-2000.0,0.00025,7]
[426797250,1782837041000,-326.79845463,0.00024813,2]
[426797249,1782837041000,-158.29619818,0.00024813,2]
[426797276,1782837041000,-171.63594645,0.00025049,2]
[426797248,1782837041000,-313.79577235,0.00024813,2]
[426797254,1782837041000,-335.44089699,0.00024813,2]
[426797218,1782837041000,-160.0,0.0002452,3]
[426797216,1782837041000,-327.16938857,0.00024227,2]
[426797222,1782837041000,-722.56,0.00024658,2]
[426797223,1782837041000,-1000.0,0.00024658,2]
[426797226,1782837041000,-188.13,0.00024658,2]
[426797224,1782837041000,-187.63,0.00024658,2]
[426797228,1782837041000,-171.63594645,0.00024775,2]
[426797229,1782837041000,-327.16938857,0.00024775,2]
[426797231,1782837041000,-439.24337729,0.00024778,2]
[426797225,1782837041000,-187.87,0.00024658,2]
[426797233,1782837041000,-339.66636017,0.00024778,2]
[426797230,1782837041000,-181.92439338,0.00024778,2]
[426797227,1782837041000,-518.5,0.00024775,2]
[426797217,1782837041000,-171.63594645,0.00024501,2]
[426797234,1782837041000,-207.66147991,0.00024778,2]
[426797241,1782837041000,-309.45849329,0.00024785,2]
[426797245,1782837041000,-331.34802024,0.00024794,2]
[426797242,1782837041000,-392.72833013,0.00024785,2]
[426797238,1782837041000,-192.96864756,0.00024778,2]
[426797232,1782837041000,-444.98395728,0.00024778,2]
[426797237,1782837041000,-322.22018913,0.00024778,2]
[426797244,1782837041000,-301.45298581,0.00024785,2]
[426797240,1782837041000,-343.72626042,0.00024785,2]
[426797246,1782837041000,-330.23595528,0.00024812,2]
[426797235,1782837041000,-204.71923249,0.00024778,2]
[426797243,1782837041000,-347.33266655,0.00024785,2]
[426797236,1782837041000,-407.03753049,0.00024778,2]
[426797239,1782837041000,-199.69462588,0.00024778,2]
[426797320,1782837042000,-208.33632084,0.00025649,2]
[426797318,1782837042000,-505.0781169,0.00025649,2]
[426797315,1782837042000,-495.35393292,0.00025649,2]
[426797314,1782837042000,-341.74489522,0.0002563,2]
[426797309,1782837042000,-384.42137632,0.00025629,2]
[426797313,1782837042000,-209.08655464,0.0002563,2]
[426797316,1782837042000,-159.77460004,0.00025649,2]
[426797317,1782837042000,-282.33385619,0.00025649,2]
[426797311,1782837042000,-232.10002932,0.0002563,2]
[426797310,1782837042000,-377.78661045,0.00025629,2]
[426797312,1782837042000,-497.02203035,0.0002563,2]
[426797319,1782837042000,-470.69365852,0.00025649,2]
[426797328,1782837042000,-279.02764679,0.00025649,2]
[426797322,1782837042000,-243.02762638,0.00025649,2]
[426797323,1782837042000,-316.59239636,0.00025649,2]
[426797324,1782837042000,-210.72308864,0.00025649,2]
[426797325,1782837042000,-490.19768194,0.00025649,2]
[426797329,1782837042000,-153.37221337,0.00025649,2]
[426797327,1782837042000,-878.83660087,0.00025649,2]
[426797326,1782837042000,-180.75684066,0.00025649,2]
[426797331,1782837042000,-295.56792002,0.00025649,2]
[426797330,1782837042000,-756.88172842,0.00025649,2]
[426797332,1782837042000,-806.26606963,0.00025649,2]
[426797333,1782837042000,-202.41552063,0.00025649,2]
[426797306,1782837042000,-452.17947872,0.0002562,2]
[426797321,1782837042000,-162.02882278,0.00025649,2]
[426797305,1782837042000,-306.26477387,0.0002562,2]
[426797287,1782837042000,-171.63594645,0.00025597,2]
[426797304,1782837042000,-353.98258166,0.0002562,2]
[426797284,1782837042000,-1850.0,0.00025333,5]
[426797285,1782837042000,-169.0,0.00025471,3]
[426797283,1782837042000,-1831.0,0.00025333,5]
[426797279,1782837042000,-171.63594645,0.00025323,2]
[426797281,1782837042000,-500.0,0.00025332,2]
[426797278,1782837042000,-537.6845,0.00025323,2]
[426797282,1782837042000,-2380.0,0.00025333,5]
[426797280,1782837042000,-327.16938857,0.00025323,2]
[426797286,1782837042000,-200.0,0.00025594,2]
[426797291,1782837042000,-667.47593592,0.00025613,2]
[426797288,1782837042000,-156.81738704,0.00025613,2]
[426797296,1782837042000,-483.33028369,0.00025613,2]
[426797302,1782837042000,-520.99899983,0.0002562,2]
[426797295,1782837042000,-610.55629574,0.00025613,2]
[426797289,1782837042000,-205.96938935,0.00025613,2]
[426797290,1782837042000,-658.86506594,0.00025613,2]
[426797297,1782837042000,-385.93729513,0.00025613,2]
[426797292,1782837042000,-247.02803769,0.00025613,2]
[426797293,1782837042000,-509.49954025,0.00025613,2]
[426797298,1782837042000,-515.58939063,0.0002562,2]
[426797308,1782837042000,-226.03286646,0.0002562,2]
[426797307,1782837042000,-214.11984905,0.0002562,2]
[426797300,1782837042000,-464.18773993,0.0002562,2]
[426797299,1782837042000,-589.0924952,0.0002562,2]
[426797301,1782837042000,-355.07433353,0.0002562,2]
[426797303,1782837042000,-207.55789163,0.0002562,2]
[426797294,1782837042000,-409.43846498,0.00025613,2]
[426797338,1782837042000,-278.99365433,0.00025649,2]
[426797335,1782837042000,-241.81210488,0.00025649,2]
[426797334,1782837042000,-503.16134548,0.00025649,2]
[426797368,1782837042000,-673.0,0.0002604,5]
[426797371,1782837042000,-5000.0,0.0002605,2]
[426797370,1782837042000,-5000.0,0.0002605,2]
[426797372,1782837042000,-5000.0,0.0002605,2]
[426797374,1782837042000,-683.0,0.00026092,5]
[426797375,1782837042000,-322.94004378,0.00026092,2]
[426797373,1782837042000,-5000.0,0.0002605,2]
[426797377,1782837042000,-2337.0,0.00026111,3]
[426797378,1782837042000,-171.63594645,0.00026145,2]
[426797369,1782837042000,-5583.54634521,0.0002605,2]
[426797379,1782837042000,-313.63477408,0.0002617,2]
[426797385,1782837042000,-153.4978484,0.0002617,2]
[426797362,1782837042000,-1786.63,0.0002589,2]
[426797380,1782837042000,-411.93877871,0.0002617,2]
[426797388,1782837042000,-679.33272034,0.0002617,2]
[426797391,1782837042000,-439.89417369,0.0002617,2]
[426797392,1782837042000,-614.15769747,0.0002617,2]
[426797390,1782837042000,-216.05795891,0.0002617,2]
[426797381,1782837042000,-878.48675459,0.0002617,2]
[426797393,1782837042000,-724.71232292,0.0002617,2]
[426797387,1782837042000,-494.05607538,0.0002617,2]
[426797389,1782837042000,-622.98443973,0.0002617,2]
[426797394,1782837042000,-814.07506099,0.0002617,2]
[426797396,1782837042000,-407.10233529,0.0002617,2]
[426797398,1782837042000,-644.44037825,0.0002617,2]
[426797336,1782837042000,-717.67764671,0.00025649,2]
[426797383,1782837042000,-889.96791455,0.0002617,2]
[426797360,1782837042000,-171.63594645,0.00025871,2]
[426797401,1782837042000,-578.90594269,0.0002617,2]
[426797361,1782837042000,-327.16938857,0.00025871,2]
[426797337,1782837042000,-153.20533043,0.00025649,2]
[426797340,1782837042000,-396.49945294,0.00025649,2]
[426797339,1782837042000,-151.3056983,0.00025649,2]
[426797341,1782837042000,-595.1597247,0.00025649,2]
[426797342,1782837042000,-244.86408903,0.00025649,2]
[426797343,1782837042000,-299.59514079,0.00025649,2]
[426797345,1782837042000,-488.95156639,0.00025649,2]
[426797363,1782837042000,-150.0,0.0002599,5]
[426797353,1782837042000,-257.07052831,0.00025653,2]
[426797354,1782837042000,-498.21723246,0.00025653,2]
[426797344,1782837042000,-508.81429279,0.00025649,2]
[426797347,1782837042000,-494.57649865,0.00025649,2]
[426797346,1782837042000,-510.66372849,0.00025649,2]
[426797352,1782837042000,-203.64751897,0.00025653,2]
[426797351,1782837042000,-190.88288657,0.00025653,2]
[426797348,1782837042000,-487.15887707,0.00025653,2]
[426797359,1782837042000,-520.16865279,0.00025871,2]
[426797367,1782837042000,-152.0,0.00026034,4]
[426797366,1782837042000,-686.0,0.0002603,5]
[426797364,1782837042000,-142175.6525,0.00026,2]
[426797365,1782837042000,-226.87,0.00026027,7]
[426797357,1782837042000,-207.98,0.0002573,2]
[426797356,1782837042000,-155.04098883,0.00025713,2]
[426797355,1782837042000,-363.84878676,0.00025653,2]
[426797350,1782837042000,-152.65090083,0.00025653,2]
[426797349,1782837042000,-514.67731975,0.00025653,2]
[426797358,1782837042000,-34285.21830944,0.000258,2]
[426797439,1782837043000,-356.64676795,0.00026206,2]
[426797440,1782837043000,-161.7371867,0.00026206,2]
[426797444,1782837043000,-222.91719655,0.00026206,2]
[426797443,1782837043000,-486.05525277,0.00026206,2]
[426797435,1782837043000,-390.38435859,0.00026206,2]
[426797436,1782837043000,-233.24553741,0.00026206,2]
[426797437,1782837043000,-673.4374892,0.00026206,2]
[426797446,1782837043000,-390.82035399,0.00026206,2]
[426797448,1782837043000,-396.32887216,0.00026206,2]
[426797447,1782837043000,-400.88397398,0.00026206,2]
[426797438,1782837043000,-627.59154469,0.00026206,2]
[426797442,1782837043000,-169.30162061,0.00026206,2]
[426797457,1782837043000,-558.05529358,0.00026206,2]
[426797449,1782837043000,-312.39699457,0.00026206,2]
[426797453,1782837043000,-653.59690925,0.00026206,2]
[426797461,1782837043000,-1009.1756379,0.00026206,2]
[426797452,1782837043000,-365.07846617,0.00026206,2]
[426797450,1782837043000,-421.44617728,0.00026206,2]
[426797459,1782837043000,-421.81134063,0.00026206,2]
[426797460,1782837043000,-166.53411534,0.00026206,2]
[426797451,1782837043000,-474.88859454,0.00026206,2]
[426797454,1782837043000,-361.51368133,0.00026206,2]
[426797456,1782837043000,-168.92687472,0.00026206,2]
[426797455,1782837043000,-1171.78213449,0.00026206,2]
[426797430,1782837043000,-813.62388377,0.00026206,2]
[426797441,1782837043000,-324.05764555,0.00026206,2]
[426797431,1782837043000,-660.47191056,0.00026206,2]
[426797425,1782837043000,-662.69604047,0.00026187,2]
[426797432,1782837043000,-425.50223071,0.00026206,2]
[426797458,1782837043000,-169.8757325,0.00026206,2]
[426797408,1782837043000,-449.02494351,0.00026178,2]
[426797403,1782837043000,-599.08387763,0.0002617,2]
[426797404,1782837043000,-194.15817916,0.0002617,2]
[426797405,1782837043000,-687.45252083,0.00026178,2]
[426797406,1782837043000,-785.45666026,0.00026178,2]
[426797411,1782837043000,-694.66533311,0.00026178,2]
[426797410,1782837043000,-532.61150029,0.00026178,2]
[426797409,1782837043000,-199.02243494,0.00026178,2]
[426797407,1782837043000,-618.91698657,0.00026178,2]
[426797412,1782837043000,-415.11578326,0.00026178,2]
[426797413,1782837043000,-459.39716081,0.00026178,2]
[426797415,1782837043000,-602.90597162,0.00026178,2]
[426797414,1782837043000,-177.06887181,0.00026178,2]
[426797417,1782837043000,-428.23969811,0.00026178,2]
[426797421,1782837043000,-576.63206448,0.00026187,2]
[426797423,1782837043000,-331.62360172,0.00026187,2]
[426797426,1782837043000,-418.17310929,0.00026187,2]
[426797424,1782837043000,-464.20005865,0.00026187,2]
[426797419,1782837043000,-452.06573292,0.00026178,2]
[426797422,1782837043000,-566.67991568,0.00026187,2]
[426797427,1782837043000,-802.97968414,0.00026206,2]
[426797428,1782837043000,-481.0761638,0.00026206,2]
[426797429,1782837043000,-438.76466829,0.00026206,2]
[426797434,1782837043000,-564.66771239,0.00026206,2]
[426797433,1782837043000,-409.99535943,0.00026206,2]
[426797462,1782837043000,-171.81201913,0.00026206,2]
[426797506,1782837043000,-655.09305154,0.0002621,2]
[426797474,1782837043000,-369.68389563,0.00026206,2]
[426797492,1782837043000,-166.07211996,0.00026206,2]
[426797493,1782837043000,-678.41905706,0.00026206,2]
[426797494,1782837043000,-302.61139661,0.00026206,2]
[426797499,1782837043000,-649.54516942,0.0002621,2]
[426797509,1782837043000,-664.28964328,0.0002621,2]
[426797498,1782837043000,-669.11972809,0.00026206,2]
[426797502,1782837043000,-686.23642633,0.0002621,2]
[426797500,1782837043000,-164.42099268,0.0002621,2]
[426797505,1782837043000,-305.30180166,0.0002621,2]
[426797504,1782837043000,-174.24266354,0.0002621,2]
[426797503,1782837043000,-209.96484872,0.0002621,2]
[426797501,1782837043000,-676.05392492,0.0002621,2]
[426797507,1782837043000,-407.29503795,0.0002621,2]
[426797520,1782837043000,-240.0,0.00026521,2]
[426797511,1782837043000,-673.0,0.00026352,5]
[426797510,1782837043000,-545.77318014,0.0002621,2]
[426797512,1782837043000,-9876.96134152,0.00026358,2]
[426797515,1782837043000,-5000.0,0.00026358,2]
[426797514,1782837043000,-5000.0,0.00026358,2]
[426797513,1782837043000,-5000.0,0.00026358,2]
[426797516,1782837043000,-5000.0,0.00026358,2]
[426797517,1782837043000,-171.63594645,0.00026419,2]
[426797519,1782837043000,-155.04098883,0.0002646,2]
[426797518,1782837043000,-327.16938857,0.00026419,2]
[426797464,1782837043000,-386.86874385,0.00026206,2]
[426797489,1782837043000,-416.83216345,0.00026206,2]
[426797490,1782837043000,-416.67264169,0.00026206,2]
[426797508,1782837043000,-514.14105661,0.0002621,2]
[426797491,1782837043000,-160.41789385,0.00026206,2]
[426797495,1782837043000,-733.42734959,0.00026206,2]
[426797463,1782837043000,-414.01866052,0.00026206,2]
[426797465,1782837043000,-439.24580139,0.00026206,2]
[426797467,1782837043000,-301.6332283,0.00026206,2]
[426797466,1782837043000,-591.13584005,0.00026206,2]
[426797471,1782837043000,-1075.02142617,0.00026206,2]
[426797469,1782837043000,-382.15404639,0.00026206,2]
[426797468,1782837043000,-265.76954164,0.00026206,2]
[426797470,1782837043000,-331.87612719,0.00026206,2]
[426797473,1782837043000,-165.42124226,0.00026206,2]
[426797479,1782837043000,-306.41066085,0.00026206,2]
[426797475,1782837043000,-404.83104126,0.00026206,2]
[426797477,1782837043000,-956.90352895,0.00026206,2]
[426797472,1782837043000,-161.48720874,0.00026206,2]
[426797496,1782837043000,-680.88497132,0.00026206,2]
[426797487,1782837043000,-599.19028157,0.00026206,2]
[426797478,1782837043000,-317.24356466,0.00026206,2]
[426797488,1782837043000,-350.58697769,0.00026206,2]
[426797497,1782837043000,-659.43533154,0.00026206,2]
[426797483,1782837043000,-214.03828431,0.00026206,2]
[426797484,1782837043000,-594.74917942,0.00026206,2]
[426797476,1782837043000,-670.88179398,0.00026206,2]
[426797481,1782837043000,-557.98730867,0.00026206,2]
[426797486,1782837043000,-489.72817806,0.00026206,2]
[426797480,1782837043000,-626.73675386,0.00026206,2]
[426797482,1782837043000,-165.9365237,0.00026206,2]
[426797485,1782837043000,-793.5462996,0.00026206,2]
[426797561,1782837044000,-150.0,0.0002703,5]
[426797560,1782837044000,-530.0,0.00027,2]
[426797569,1782837044000,-662.0,0.00027137,5]
[426797566,1782837044000,-6088.0,0.0002709,2]
[426797559,1782837044000,-1058.06176214,0.00027,2]
[426797552,1782837044000,-190.79589058,0.00026867,2]
[426797558,1782837044000,-250.0,0.00027,2]
[426797554,1782837044000,-327.16938857,0.00026967,2]
[426797553,1782837044000,-171.63594645,0.00026967,2]
[426797555,1782837044000,-10647.7813192,0.00027,5]
[426797564,1782837044000,-1362.0,0.0002709,2]
[426797562,1782837044000,-283.0,0.0002709,2]
[426797565,1782837044000,-1231.0,0.0002709,2]
[426797576,1782837044000,-504.0,0.00027137,2]
[426797568,1782837044000,-678.0,0.00027137,5]
[426797567,1782837044000,-680.0,0.00027137,5]
[426797571,1782837044000,-152.0,0.00027137,5]
[426797580,1782837044000,-155.04098883,0.00027207,2]
[426797581,1782837044000,-171.63594645,0.00027241,2]
[426797582,1782837044000,-687.0,0.00027294,5]
[426797570,1782837044000,-687.0,0.00027137,5]
[426797572,1782837044000,-686.0,0.00027137,5]
[426797573,1782837044000,-299.0,0.00027137,5]
[426797577,1782837044000,-663.0,0.00027138,5]
[426797574,1782837044000,-685.0,0.00027137,5]
[426797578,1782837044000,-674.0,0.00027143,5]
[426797550,1782837044000,-1293.79056515,0.000268,15]
[426797563,1782837044000,-1278.0,0.0002709,2]
[426797551,1782837044000,-6645207.4760794,0.000268,2]
[426797531,1782837044000,-868.33166639,0.00026735,2]
[426797549,1782837044000,-151.0,0.00026797,7]
[426797521,1782837044000,-171.63594645,0.00026693,2]
[426797575,1782837044000,-686.0,0.00027137,5]
[426797523,1782837044000,-830.3620541,0.00026727,2]
[426797522,1782837044000,-210.81336156,0.000267,2]
[426797524,1782837044000,-811.93146178,0.00026727,2]
[426797530,1782837044000,-773.64623322,0.00026735,2]
[426797528,1782837044000,-859.31565104,0.00026735,2]
[426797529,1782837044000,-981.82082533,0.00026735,2]
[426797526,1782837044000,-905.89040365,0.00026727,2]
[426797527,1782837044000,-1017.59382623,0.00026727,2]
[426797536,1782837044000,-825.58988819,0.00026764,2]
[426797537,1782837044000,-841.7968615,0.00026764,2]
[426797532,1782837044000,-753.63246453,0.00026735,2]
[426797548,1782837044000,-857.79553291,0.00026768,2]
[426797535,1782837044000,-1017.02985471,0.00026764,2]
[426797534,1782837044000,-1003.72460517,0.00026763,2]
[426797544,1782837044000,-991.9328745,0.00026764,2]
[426797533,1782837044000,-828.37005059,0.00026744,2]
[426797543,1782837044000,-1196.12941118,0.00026764,2]
[426797541,1782837044000,-1343.77678271,0.00026764,2]
[426797539,1782837044000,-1464.72766811,0.00026764,2]
[426797540,1782837044000,-1261.46954737,0.00026764,2]
[426797542,1782837044000,-838.60224247,0.00026764,2]
[426797545,1782837044000,-848.02382132,0.00026764,2]
[426797556,1782837044000,-684.0,0.00027,5]
[426797547,1782837044000,-824.29416442,0.00026764,2]
[426797557,1782837044000,-674.0,0.00027,5]
[426797546,1782837044000,-851.10621415,0.00026764,2]
[426797538,1782837044000,-816.99613657,0.00026764,2]
[426797579,1782837044000,-677.0,0.00027169,5]
[426797525,1782837044000,-1112.45989319,0.00026727,2]
[426797586,1782837044000,-599.35855389,0.00027397,2]
[426797611,1782837044000,-214.32444032,0.00027397,2]
[426797621,1782837044000,-644.57,0.000274,7]
[426797620,1782837044000,-408.76,0.000274,7]
[426797619,1782837044000,-2476.02574962,0.00027397,2]
[426797622,1782837044000,-2337.0,0.0002742,3]
[426797623,1782837044000,-500.0,0.000275,7]
[426797625,1782837044000,-327.16938857,0.00027515,2]
[426797624,1782837044000,-171.63594645,0.00027515,2]
[426797626,1782837044000,-500.0,0.0002755,2]
[426797627,1782837044000,-243.24190364,0.0002755,2]
[426797629,1782837044000,-928.98756966,0.00027562,2]
[426797628,1782837044000,-1334.95187183,0.00027562,2]
[426797630,1782837044000,-1080.55647121,0.00027562,2]
[426797616,1782837044000,-382.89855096,0.00027397,2]
[426797631,1782837044000,-1221.11259148,0.00027562,2]
[426797633,1782837044000,-904.35895743,0.0002757,2]
[426797634,1782837044000,-994.04406071,0.0002758,2]
[426797636,1782837044000,-980.39536388,0.000276,2]
[426797635,1782837044000,-1010.1562338,0.000276,2]
[426797637,1782837044000,-1757.67320174,0.000276,2]
[426797641,1782837044000,-1006.32269097,0.000276,2]
[426797639,1782837044000,-1056.04444392,0.000276,2]
[426797642,1782837044000,-1435.35529342,0.000276,2]
[426797638,1782837044000,-1513.76345684,0.000276,2]
[426797644,1782837044000,-1017.62858558,0.000276,2]
[426797643,1782837044000,-1126.211859,0.000276,2]
[426797640,1782837044000,-1612.53213925,0.000276,2]
[426797583,1782837044000,-150.0,0.00027397,2]
[426797632,1782837044000,-1041.99799966,0.0002757,2]
[426797614,1782837044000,-191.44927548,0.00027397,2]
[426797645,1782837044000,-1021.32745698,0.000276,2]
[426797617,1782837044000,-765.79710192,0.00027397,2]
[426797618,1782837044000,-998.16407753,0.00027397,2]
[426797592,1782837044000,-500.0,0.00027397,2]
[426797584,1782837044000,-373.17476563,0.00027397,2]
[426797585,1782837044000,-500.0,0.00027397,2]
[426797591,1782837044000,-500.0,0.00027397,2]
[426797589,1782837044000,-500.0,0.00027397,2]
[426797593,1782837044000,-500.0,0.00027397,2]
[426797590,1782837044000,-500.0,0.00027397,2]
[426797587,1782837044000,-500.0,0.00027397,2]
[426797595,1782837044000,-500.0,0.00027397,2]
[426797594,1782837044000,-500.0,0.00027397,2]
[426797596,1782837044000,-319.54019526,0.00027397,2]
[426797597,1782837044000,-150.0,0.00027397,2]
[426797598,1782837044000,-1500.0,0.00027397,2]
[426797588,1782837044000,-500.0,0.00027397,2]
[426797609,1782837044000,-547.41714865,0.00027397,2]
[426797608,1782837044000,-364.94476577,0.00027397,2]
[426797612,1782837044000,-428.64888063,0.00027397,2]
[426797610,1782837044000,-729.88953153,0.00027397,2]
[426797603,1782837044000,-1027.18,0.00027397,2]
[426797605,1782837044000,-42097.98,0.00027397,10]
[426797599,1782837044000,-531.09,0.00027397,2]
[426797615,1782837044000,-574.34782644,0.00027397,2]
[426797606,1782837044000,-35081.65,0.00027397,10]
[426797601,1782837044000,-722.56,0.00027397,2]
[426797602,1782837044000,-3099.81,0.00027397,2]
[426797613,1782837044000,-642.97332095,0.00027397,2]
[426797607,1782837044000,-182.47238288,0.00027397,2]
[426797604,1782837044000,-50517.57,0.00027397,10]
[426797600,1782837044000,-300.0,0.00027397,2]
[426797678,1782837045000,-155.04098883,0.00028701,2]
[426797684,1782837045000,-1557.44385047,0.00028816,2]
[426797675,1782837045000,-187.87,0.00028639,2]
[426797673,1782837045000,-327.16938857,0.00028611,2]
[426797677,1782837045000,-547.92,0.000287,14]
[426797681,1782837045000,-755.46,0.00028767,2]
[426797692,1782837045000,-2050.61873536,0.00028854,2]
[426797682,1782837045000,-1094.8342973,0.0002879,2]
[426797691,1782837045000,-1143.79459119,0.00028854,2]
[426797680,1782837045000,-1237.51424129,0.00028767,2]
[426797683,1782837045000,-408.76,0.000288,7]